Cogmind - Beta 15 @@@ ROGUE MODE // 2025.06.14 @ 17:48:49 Player: DwarfFeats Result: Self-destructed Performance ------------- Evolutions (2) 1000 Regions Visited (3) 600 Robots Destroyed (3) 15 Value Destroyed (97) 97 Prototype IDs (0) 0 Alien Tech Used (0) 0 Bonus (200) 200 TOTAL SCORE: 1912 Bonus ------- Pacifist 200 Cogmind --------- Core Integrity 526/550 Matter 264/300 Energy 250/250 System Corruption 0% Temperature Cool (1) Movement Core (50) Location -8/Materials Parts ------- > --- POWER (2) -------- Ion Engine > --- PROPULSION (4) --- Aluminum Leg Aluminum Leg > --- UTILITY (3) ------ Weight Redist. System Improved Sensor Array Power Shielding > --- WEAPON (2) ------- (None) > --- INVENTORY (5) ---- High-capacity Battery (250) Weight Redist. System Weight Redist. System Peak State ------------ > --- POWER ------------ Ion Engine Light Ion Engine > --- PROPULSION ------- Aluminum Leg Aluminum Leg Flight Unit Flight Unit > --- UTILITY ---------- Weight Redist. System Improved Sensor Array Power Shielding > --- WEAPON ----------- EM Pulse Gun > --- INVENTORY -------- High-capacity Battery Weight Redist. System Weight Redist. System [Rating: 13] Favorites ----------- Power Light Ion Engine Engine Light Ion Engine Propulsion Aluminum Leg Leg Aluminum Leg Hover Unit Improved Hover Unit Flight Unit Flight Unit Utility Small Storage Unit Device Weight Redist. System Storage Small Storage Unit Protection Power Shielding Weapon EM Pulse Gun Energy Gun EM Pulse Gun Build | -11 -10 -9 -8 ------- Run | Yrd Mat Mat Mat Slots Evolved 4 | . . 2 2 Power 1 | . . 1 . Propulsion 2 | . . 1 1 Utility 1 | . . . 1 Weapon . | . . . . Parts Attached 14 | 6 . 6 2 Power 2 | 1 . 1 . Engine 2 | 1 . 1 . Core . | . . . . Reactor . | . . . . Propulsion 5 | 2 . 3 . Treads . | . . . . Leg 2 | 2 . . . Wheel . | . . . . Hover 1 | . . 1 . Flight 2 | . . 2 . Utility 5 | 1 . 2 2 Device 3 | . . 1 2 Storage 1 | 1 . . . Processor . | . . . . Hackware . | . . . . Protection 1 | . . 1 . Artifact . | . . . . Weapon 2 | 2 . . . Energy Gun 2 | 2 . . . Energy Cannon . | . . . . Ballistic Gun . | . . . . Ballistic Cannon . | . . . . Launcher . | . . . . Special Weapon . | . . . . Impact Weapon . | . . . . Slashing Weapon . | . . . . Piercing Weapon . | . . . . Special Melee Weapon . | . . . . Unidentified Prototypes . | . . . . Parts Lost 5 | . . 1 4 Power 1 | . . . 1 Propulsion 2 | . . . 2 Utility . | . . . . Weapon 2 | . . 1 1 Highest Loss Streak 4 | . . 1 4 To Critical Strikes . | . . . . Average Backups 5 | 5 5 5 3 Power . | . 1 . . Propulsion 2 | 3 2 3 . Utility 1 | . 1 2 2 Weapon . | . . . . Tool/Special . | . . . . Unused Backups 7 | . 5 . 2 Power . | . . . . Propulsion 4 | . 4 . . Utility 2 | . . . 2 Weapon 1 | . 1 . . Tool/Special . | . . . . Average Slot Usage (%) 82 | . 85 80 76 Engine 17 | . 14 21 18 Leg 22 | . 28 20 10 Flight 3 | . . 4 15 Device 3 | . . 3 16 Storage 9 | . 14 7 . Protection 2 | . . 3 9 Energy Gun 22 | . 28 20 7 Peak Build Rating 13 | 6 6 10 13 Average Rating 6 | 3 6 7 10 On Entrance 5 | . 6 6 9 Naked Turns . | . . . . Heaviest Build 17 | 12 12 17 12 Greatest Support 26 | 20 20 26 26 Greatest Overweight (x) 2 | 2 . 1 1 Average Overweight (x) . | . . . . Largest Inventory Capacity 8 | 8 8 8 5 Average Capacity 7 | 7 8 7 5 Most Carried 8 | 7 7 8 5 Average Carried 5 | 5 5 5 2 Final Capacity 8 | 8 8 5 5 Final Carried 7 | 6 7 4 3 Class Distribution -------------------- 100% | Mutant Dominant Class ---------------- Mutant | -10/Materials Mutant | -9/Materials Mutant | -8/Materials Resources | -11 -10 -9 -8 ----------- Run | Yrd Mat Mat Mat Matter Collected 339 | 187 73 79 . Remotely . | . . . . Salvage Created 119 | . . 119 . Parts 4 | . . 4 . Haulers Intercepted . | . . . . Recyclers Shooed . | . . . . Parts Field Recycled . | . . . . Retrieved Matter . | . . . . Parts Self-Destructed . | . . . . Prevented . | . . . . Kills | -11 -10 -9 -8 ------- Run | Yrd Mat Mat Mat Combat Hostiles Destroyed 2 | . . 2 . Guns 2 | . . 2 . Classes Destroyed 2 | . . 2 . Watcher 1 | . . 1 . Grunt 2 | . . 2 . Best Kill Streak 2 | . . 2 . Combat Bots Only 2 | . . 2 . Max Kills in Single Turn 1 | . . 1 . Gunslinging . | . . . . Exploded . | . . . . Melee . | . . . . Uniques/NPCs Destroyed . | . . . . Combat | -11 -10 -9 -8 -------- Run | Yrd Mat Mat Mat Hostile Shots Fired 43 | . 5 24 14 Missed 12 | . 1 8 3 Hits 31 | . 4 16 11 Projectile 31 | . 4 16 11 Damage Taken 390 | . 54 184 152 Core 34 | . . 10 24 Absorbed by Shields . | . . . . Redirected to Shielding 14 | . . 12 2 Core Remaining (%) 99 | 100 100 97 . Volleys Fired 15 | . . 15 . Largest 2 | . . 2 . Hottest 80 | . . 80 . Shots Fired 26 | . . 26 . Gun 26 | . . 26 . Cannon . | . . . . Launcher . | . . . . Special . | . . . . Kinetic . | . . . . Thermal . | . . . . Explosive . | . . . . Electromagnetic 26 | . . 26 . Robot Hit Streak 7 | . . 7 . Robot Miss Streak 4 | . . 4 . Penetration Max . | . . . . Secondary Targets . | . . . . Shots Hit Robots 14 | . . 14 . Core Hits 6 | . . 6 . Critical Kills . | . . . . Critical Parts Destroyed . | . . . . Critical Strikes . | . . . . Melee Attacks . | . . . . Impact . | . . . . Slashing . | . . . . Piercing . | . . . . Sneak Attacks . | . . . . Combat Hostiles . | . . . . Follow-up Attacks . | . . . . Damage Inflicted 256 | . . 256 . Guns 256 | . . 256 . Cannons . | . . . . Explosions . | . . . . Melee . | . . . . Ramming . | . . . . Kinetic . | . . . . Thermal . | . . . . Explosive . | . . . . Electromagnetic 256 | . . 256 . Impact . | . . . . Slashing . | . . . . Piercing . | . . . . Highest Corruption 1 | . 1 . . Average Corruption 1 | . 1 . . Corruption Purged . | . . . . Corruption Blocked . | . . . . Overload Shots . | . . . . Overflow Damage . | . . . . Projectiles . | . . . . Explosions . | . . . . Melee . | . . . . Knockbacks . | . . . . Impact . | . . . . Kinetic . | . . . . Secondary . | . . . . Self-Inflicted Damage . | . . . . Shots . | . . . . Rammed . | . . . . Targets Rammed . | . . . . Kicked . | . . . . Crushed . | . . . . Highest Temperature 192 | . . 192 . Average Temperature 64 | . . 64 . Received Heat Transfer 138 | . 30 108 . Siege Activations . | . . . . Martial Activations . | . . . . Shielding Activations . | . . . . Robots Disrupted . | . . . . Combat Hostiles . | . . . . Robots Corrupted . | . . . . Combat Hostiles . | . . . . Parts Fried . | . . . . Impact Corruptions . | . . . . Robots Melted . | . . . . Combat Hostiles . | . . . . Parts Melted . | . . . . Heat Transferred . | . . . . Parts Sabotaged . | . . . . Parts Stolen . | . . . . Parts Stripped . | . . . . Power Chain Reactions . | . . . . Alert | -11 -10 -9 -8 ------- Run | Yrd Mat Mat Mat Maximum Alert Level . | . . . . Low Security (%) 100 | 100 100 100 100 Level 1 . | . . . . Level 2 . | . . . . Level 3 . | . . . . Level 4 . | . . . . Level 5 . | . . . . High Security . | . . . . Max Security . | . . . . Peak Influence 67 | . 1 67 19 Initial 19 | . . . 19 Average 9 | . . 23 10 Influence Increases 140 | . 1 124 15 Destroy 0b10 Robot/C 40 | . . 40 . Destroy 0b10 Robot/NC 5 | . . 5 . Destroy Leader 12 | . . 12 . Successful Hack 8 | . 1 7 . Partial Spotted 15 | . . . 15 Lose Combat Pursuer 60 | . . 60 . Influence Decreases 135 | . 1 77 57 Entered New Map 28 | . . . 28 Time Decay 78 | . 1 67 10 Lost Part 29 | . . 10 19 Squads Dispatched 2 | . 2 . . Investigation 2 | . 2 . . Extermination . | . . . . Reinforcement . | . . . . Assault . | . . . . Garrison . | . . . . Intercept . | . . . . Searches Triggered . | . . . . Construction Impeded . | . . . . Haulers Reinforced . | . . . . Active Scanning Responses . | . . . . Cargo Convoy Interrupts . | . . . . Stealth | -11 -10 -9 -8 --------- Run | Yrd Mat Mat Mat Distress Signals 2 | . . 2 . Communications Jammed . | . . . . Distress Signals . | . . . . Times Spotted 20 | . 4 8 8 Peak Tracking Total 9 | . 3 5 9 Tactical Retreats 3 | . . 3 . Traps | -11 -10 -9 -8 ------- Run | Yrd Mat Mat Mat Traps Triggered 1 | . 1 . . Indirectly . | . . . . Trap Hack Attempts . | . . . . Triggered . | . . . . Disarmed . | . . . . Reprogrammed . | . . . . Reused . | . . . . Traps Extracted . | . . . . Installed . | . . . . Triggered . | . . . . Machines | -11 -10 -9 -8 ---------- Run | Yrd Mat Mat Mat Machines Disabled . | . . . . Max in Single Turn . | . . . . Machines Repaired . | . . . . Machines Dismantled . | . . . . Machines Sabotaged . | . . . . Overloaded Fab Kills . | . . . . Hacking | -11 -10 -9 -8 --------- Run | Yrd Mat Mat Mat Machines Accessed 2 | . 1 1 . Terminals 1 | . . 1 . Fabricators . | . . . . Repair Stations . | . . . . Recycling Units 1 | . 1 . . Scanalyzers . | . . . . Garrison Access . | . . . . Total Hacks 5 | . 3 2 . Successful 3 | . 2 1 . Failed 2 | . 1 1 . Catastrophic . | . . . . Database Lockouts . | . . . . Manual 2 | . . 2 . Terminals 2 | . . 2 . Fabricators . | . . . . Repair Stations . | . . . . Recycling Units 3 | . 3 . . Scanalyzers . | . . . . Garrison Access . | . . . . Terminal Hacks 1 | . . 1 . Disarm Traps 1 | . . 1 . Fabricator Hacks . | . . . . Repair Station Hacks . | . . . . Recycling Unit Hacks 2 | . 2 . . Recycle Component 1 | . 1 . . Process 1 | . 1 . . Scanalyzer . | . . . . Garrison Access Hacks . | . . . . Unauthorized Hacks . | . . . . Terminals . | . . . . Fabricators . | . . . . Repair Stations . | . . . . Recycling Units . | . . . . Scanalyzers . | . . . . Garrison Access . | . . . . Data Cores Recovered . | . . . . Used . | . . . . Hacking Detections 1 | . 1 . . Full Trace Events 1 | . 1 . . Feedback Events 1 | . 1 . . Corruption 1 | . 1 . . Feedback Blocked . | . . . . Robot Schematics Acquired . | . . . . Robots Built . | . . . . Authchips . | . . . . Time . | . . . . Total Robot Build Rating . | . . . . Part Schematics Acquired . | . . . . Parts Built . | . . . . Authchips . | . . . . Time . | . . . . Total Part Build Rating . | . . . . Parts Repaired . | . . . . Time . | . . . . Parts Recycled 1 | . 1 . . Recycled Matter 91 | . 91 . . Retrieved Matter . | . . . . Retrieved Components . | . . . . Parts Scanalyzed . | . . . . Part Schematics Acquired . | . . . . Parts Damaged . | . . . . Bothacking | -11 -10 -9 -8 ------------ Run | Yrd Mat Mat Mat Used RIF Installer . | . . . . Robots Hacked . | . . . . Non-combat . | . . . . Combat . | . . . . Robot Hacks Applied . | . . . . Relay Couplers Released . | . . . . Fabnet Peak Effective % . | . . . . Robots Rewired . | . . . . Allies Hacked . | . . . . Hacks Repelled . | . . . . Allies | -11 -10 -9 -8 -------- Run | Yrd Mat Mat Mat Total Allies . | . . . . Largest Group . | . . . . Highest-Rated Group . | . . . . Highest-Rated Ally . | . . . . Total Orders . | . . . . Ally Attacks . | . . . . Total Damage . | . . . . Kills . | . . . . Allies Corrupted . | . . . . Allies Melted . | . . . . Intel | -11 -10 -9 -8 ------- Run | Yrd Mat Mat Mat Active Infowar (turns) 19 | . . . 19 Sensors 19 | . . . 19 Robot Analysis Total . | . . . . Derelict Logs Recovered . | . . . . Drone Launches . | . . . . Drone Recoveries . | . . . . Exploration | -11 -10 -9 -8 ------------- Run | Yrd Mat Mat Mat Turns Passed 565 | 80 222 213 50 Spaces Moved 430 | 54 179 129 68 Core 23 | 20 . . 3 Treads . | . . . . Legs 346 | 34 179 129 4 Wheels . | . . . . Hover . | . . . . Flight 61 | . . . 61 Fastest Speed 37 | 50 120 120 37 Average Speed 110 | 116 120 121 58 Slowest Speed 190 | 150 120 190 120 Overloaded Moves . | . . . . Propulsion Burnouts . | . . . . Robots Hopped 4 | . 4 . . Potential Cave-ins . | . . . . Cave-ins Triggered . | . . . . Exploration Rate (%) 16 | 4 36 17 10 Regions Visited 3 Branch Regions . Pre-discovered Areas . | . . . . Known Exits Taken . | . . . . Unknown Exits Taken 3 | 1 1 1 . Scrap Searched . | . . . . Spaces Dug . | . . . . Terrain Destroyed . | . . . . Melee . | . . . . Projectile . | . . . . AOE . | . . . . Terrain Rammed . | . . . . Walls Destroyed . | . . . . Machines Disabled . | . . . . Actions | -11 -10 -9 -8 --------- Run | Yrd Mat Mat Mat Total 498 | 71 184 163 80 Wait . | . . . . Move 420 | 53 171 128 68 Hop 3 | . 3 . . Pick Up 24 | 12 6 3 3 Fast Attach 1 | . . 1 . Attach 19 | 6 . 8 5 Detach 6 | . . 4 2 Swap . | . . . . Drop 10 | . 4 4 2 Fire 15 | . . 15 . Melee . | . . . . Ram . | . . . . Kick . | . . . . Crush . | . . . . Escape Stasis . | . . . . Rewire . | . . . . Trap . | . . . . Miscellaneous . | . . . . Route ------- -11/Scrapyard -10/Materials -9/Materials -8/Materials History --------- Turn | Location | Event 22 | -11/Scrapyard | Discovered new exit (range 14) 81 | -11/Scrapyard | Entered Materials 82 | -10/Materials | Met a group of wandering Federalists 180 | -10/Materials | Discovered new exit (range 15) 303 | -10/Materials | Build established: Mutant 303 | -10/Materials | Entered another Materials area 303 | -9/Materials | Evolved 2 slots: Power x1, Propulsion x1 500 | -9/Materials | Discovered new exit (range 13) 516 | -9/Materials | Entered another Materials area 516 | -8/Materials | Evolved 2 slots: Propulsion x1, Utility x1 566 | -8/Materials | Self-destructed Last Messages --------------- Processing Unit. 00487_ EM Pulse Gun destroyed. 00500_ EXIT=FOUND 00514_ G-34 Mercenary misfires. 00515_ K-01 Serf collects debris. PARAMETERS=PROPULSION+1,UTILITY+1 LOCATION=UNKNOWN GOAL=ESCAPE 00518_ Dropped Aluminum Leg. 00529_ Acquired Aluminum Leg. 00545_ Acquired Imp. Sensor Array. 00549_ Penetrated by Slug. 00552_ Flight Unit destroyed. 00552_ EM Pulse Gun destroyed. 00560_ K-01 Serf collects debris. 00563_ Lgt. Ion Engine destroyed. 00565_ C-30 ARC bursts open, deploying its payload. 00565_ S-10 Pest unfolds itself. 00566_ Flight Unit destroyed. Map ----- +----------------------------------------------------+ | ?????????????????????????????????????????????????? | | ?????????????????????????????????????????????????? | | ?????????????????????????????????????????????????? | | ?????????????????????????????????????????????????? | | ?????????????????????????????????????????????????? | | ?????????????????????????????????????????????????? | | ?????????????????????????????????????????????????? | | ?????????????????????????????????????????????????? | | ?????????????????????????????????????????????????? | | ?????????????????????????????????????????????????? | | ??????????????????????????????????# #????????????? | | ????????????????????????????????? #??????????? | | ??????????????????????????????? ? #??????????? | | ????????????????????????# ???"?"# #??????????? | | ????????????????????????# S"# ???????????? | | ????????????????##??????# # ???????????? | | ????????????????? ??????# ! ## #??????? ???? | | ?????????????????? ????## """ ## #?????? ????? | | ??????????????????? ???# """ ## #??? /?????? | | ???????????????????# ???# """ ## #???" #?????? | | ???????????????????# ???? ## #??"" ####### | | ???????????????????# ????? ## #??"" # | | ???????????????????# w #######s### #? # " | | ???????????????""" # ss #? # " | | ???????????????""" a s # # " | | ???????????????????# @ ss # == =# | | ???????????????????# ########### + == # " | | ???????????????????# ????????????# # == # " | | ?????????????????????????????????# # # " | | ????????????????????????????????## ####### | | ????????????????????????????????# ##########+# | | ????????????????????????????????# | | ????????????????????????????????# | | ????????????????????????????????# | | ????????????????????????????????# ##########+# | | ????????????????????????????????#######????# | | ???????????????????????????????????????????# = | | ???????????????????????????????????????????# """ | | ???????????????????????????????????????????# """" | | ???????????????????????????????????????????# """" | | ???????????????????????????????????????????# """" | | ???????????????????????????????????????????#! """ | | ???????????????????????????????????????????# | | ???????????????????????????????????????????####??? | | | | | | | | | | | | | +----------------------------------------------------+ Best States ------------- Heat Dissipation 31 Energy Generation 15 Energy Capacity 275 Matter Stores 300 Matter Capacity 300 Sight Range 16 Robot Scan Range 15 Terrain Scan Density 10 Additional Mass Support 6 Power Shielding 33 Evasion (%) 58 Item Schematics ----------------- None Robot Schematics ------------------ None Fabricated ------------ Nothing Repaired ---------- Nothing Alien Tech Used ----------------- None Achievements -------------- None Challenges ------------ None Game ------ Seed AssaultAssemblyArmor Manual? 0 Play Time 00:18:51 Cumulative 7.4 hours Start 2025.06.14 @ 17:27:24 End 2025.06.14 @ 17:48:49 Sessions 1 Manual Loads 0 Difficulty Rogue Special Mode None Game No. 8 Rogue 8 Adventurer 0 Explorer 0 Win Type - Total 0 Types 0/0/0/0/0/0/0/0/0/0 Lore% 4 Gallery% 11 Achievement% 13 Wizard Run 0 Options --------- Layout 1 ASCII 0 Keyboard 0 Movement Numpad Keybinds 0 Fullscreen 1 Font 24/Smallcaps Map View 50x35 Zoom Use 0% Tactical HUD 1 Map Filters NONE Filters NONE Steam 1 RUN: 2cec6ae1-5d92-4f6a-aa2f-2531e73e4ea8